[Event "Titled Tuesday Blitz April 19 Late 2022"]
[White "Yang, Cayden"]
[Black "Jimenez Fernandez, Rebeca"]
[WhiteFideId "30967260"]
[BlackFideId "32070934"]
[WhiteElo "2468"]
[BlackElo "1853"]
[Result "1-0"]
[Round "09"]
[TimeControl "180+1"]
[Date "2022.04.19"]
[WhiteClock "0:01:02"]
[BlackClock "0:00:01"]

1. e4 {[%clk 0:02:54]}  g6 {[%clk 0:02:58]} 2. d4 {[%clk 0:02:54]}  Bg7 {[%clk 0:02:59]} 3. Nc3 {[%clk 0:02:53]}  d6 {[%clk 0:03:00]} 4. f4 {[%clk 0:02:53]}  a6 {[%clk 0:02:59]} 5. Nf3 {[%clk 0:02:52]}  b5 {[%clk 0:02:59]} 6. Bd3 {[%clk 0:02:53]}  Nf6 {[%clk 0:02:58]} 7. e5 {[%clk 0:02:51]}  dxe5 {[%clk 0:02:53]} 8. fxe5 {[%clk 0:02:44]}  Nd5 {[%clk 0:02:49]} 9. O-O {[%clk 0:02:29]}  O-O {[%clk 0:02:46]} 10. Ne4 {[%clk 0:02:24]}  Bb7 {[%clk 0:02:43]} 11. Qe1 {[%clk 0:02:21]}  Nd7 {[%clk 0:02:41]} 12. Qh4 {[%clk 0:02:18]}  c5 {[%clk 0:02:33]} 13. Bh6 {[%clk 0:02:15]}  cxd4 {[%clk 0:02:29]} 14. Neg5 {[%clk 0:02:09]}  N5f6 {[%clk 0:01:02]} 15. Bxg7 {[%clk 0:01:47]}  Kxg7 {[%clk 0:01:01]} 16. exf6+ {[%clk 0:01:48]}  Nxf6 {[%clk 0:01:01]} 17. Rae1 {[%clk 0:01:36]}  e6 {[%clk 0:00:45]} 18. Rxe6 {[%clk 0:01:34]}  Nh5 {[%clk 0:00:15]} 19. Ree1 {[%clk 0:01:03]}  h6 {[%clk 0:00:08]} 20. Ne4 {[%clk 0:01:02]}  Qxh4 {[%clk 0:00:06]} 21. Nxh4 {[%clk 0:01:02]}  f5 {[%clk 0:00:01]} 22. Nd6 {[%clk 0:01:02]}  Bd5 {[%clk 0:00:01]} 23. Re7+ {[%clk 0:01:01]}  Kf6 {[%clk 0:00:01]} 24. Rfe1 {[%clk 0:01:02]} 1-0


[Site "https://www.chess.com"]

[Event "Titled Tuesday Blitz April 19 Late 2022"]
[White "Ahmadzada, Ahmad"]
[Black "Arabidze, Meri"]
[WhiteFideId "13413007"]
[BlackFideId "13604040"]
[WhiteElo "2228"]
[BlackElo "2335"]
[Result "0-1"]
[Round "10"]
[TimeControl "180+1"]
[Date "2022.04.19"]
[WhiteClock "0:00:03"]
[BlackClock "0:00:17"]

1. Nf3 {[%clk 0:03:00]}  b6 {[%clk 0:02:59]} 2. g3 {[%clk 0:03:01]}  Bb7 {[%clk 0:02:59]} 3. Bg2 {[%clk 0:03:01]}  Nf6 {[%clk 0:02:59]} 4. O-O {[%clk 0:03:02]}  g6 {[%clk 0:02:59]} 5. c4 {[%clk 0:03:01]}  Bg7 {[%clk 0:02:58]} 6. Nc3 {[%clk 0:03:01]}  O-O {[%clk 0:02:58]} 7. d3 {[%clk 0:03:02]}  c5 {[%clk 0:02:56]} 8. e4 {[%clk 0:03:02]}  d6 {[%clk 0:02:53]} 9. Ne1 {[%clk 0:02:58]}  Nc6 {[%clk 0:02:50]} 10. f4 {[%clk 0:02:58]}  e6 {[%clk 0:02:44]} 11. g4 {[%clk 0:02:55]}  Nd4 {[%clk 0:02:36]} 12. e5 {[%clk 0:02:36]}  Bxg2 {[%clk 0:02:30]} 13. exf6 {[%clk 0:02:36]}  Bxf1 {[%clk 0:02:25]} 14. fxg7 {[%clk 0:02:36]}  Kxg7 {[%clk 0:02:23]} 15. Kxf1 {[%clk 0:02:37]}  Qh4 {[%clk 0:02:19]} 16. Kg2 {[%clk 0:02:25]}  f5 {[%clk 0:02:02]} 17. g5 {[%clk 0:02:01]}  h6 {[%clk 0:01:58]} 18. Nf3 {[%clk 0:01:19]}  Qg4+ {[%clk 0:01:53]} 19. Kf2 {[%clk 0:01:17]}  hxg5 {[%clk 0:01:43]} 20. Nxg5 {[%clk 0:01:16]}  Qh4+ {[%clk 0:01:33]} 21. Kg2 {[%clk 0:01:15]}  Rh8 {[%clk 0:01:32]} 22. h3 {[%clk 0:01:15]}  e5 {[%clk 0:01:17]} 23. Nd5 {[%clk 0:00:38]}  Rae8 {[%clk 0:01:06]} 24. Kh1 {[%clk 0:00:14]}  exf4 {[%clk 0:00:41]} 25. Bxf4 {[%clk 0:00:13]}  Re2 {[%clk 0:00:40]} 26. Qf1 {[%clk 0:00:11]}  Rhe8 {[%clk 0:00:22]} 27. Nf3 {[%clk 0:00:09]}  Nxf3 {[%clk 0:00:16]} 28. Qxf3 {[%clk 0:00:07]}  Re1+ {[%clk 0:00:16]} 29. Rxe1 {[%clk 0:00:03]}  Qxe1+ {[%clk 0:00:17]} 0-1


[Site "https://www.chess.com"]

[Event "Titled Tuesday Blitz April 19 Late 2022"]
[White "Aigner, Michael"]
[Black "Nozdrachev, Leonid"]
[WhiteFideId "2017288"]
[BlackFideId "24113433"]
[WhiteElo "2407"]
[BlackElo "2242"]
[Result "0-1"]
[Round "10"]
[TimeControl "180+1"]
[Date "2022.04.19"]
[WhiteClock "0:00:07"]
[BlackClock "0:00:05"]

1. e4 {[%clk 0:03:00]}  c6 {[%clk 0:02:56]} 2. Nc3 {[%clk 0:02:59]}  e5 {[%clk 0:02:52]} 3. Nf3 {[%clk 0:02:57]}  Bb4 {[%clk 0:02:33]} 4. Bc4 {[%clk 0:02:50]}  d6 {[%clk 0:02:32]} 5. O-O {[%clk 0:02:46]}  Nf6 {[%clk 0:02:31]} 6. d3 {[%clk 0:02:46]}  O-O {[%clk 0:02:30]} 7. Ne2 {[%clk 0:02:42]}  Be6 {[%clk 0:02:28]} 8. Ng3 {[%clk 0:02:39]}  Nbd7 {[%clk 0:02:25]} 9. a3 {[%clk 0:02:33]}  Ba5 {[%clk 0:02:18]} 10. Be3 {[%clk 0:02:27]}  d5 {[%clk 0:02:12]} 11. Ba2 {[%clk 0:02:21]}  h6 {[%clk 0:02:08]} 12. b4 {[%clk 0:02:15]}  Bb6 {[%clk 0:02:07]} 13. c3 {[%clk 0:02:04]}  Bxe3 {[%clk 0:02:02]} 14. fxe3 {[%clk 0:02:03]}  dxe4 {[%clk 0:02:01]} 15. dxe4 {[%clk 0:02:01]}  Bxa2 {[%clk 0:02:00]} 16. Rxa2 {[%clk 0:02:00]}  Nb6 {[%clk 0:02:00]} 17. Qb3 {[%clk 0:01:54]}  Qd3 {[%clk 0:01:53]} 18. Re2 {[%clk 0:01:48]}  Rae8 {[%clk 0:01:32]} 19. Rd1 {[%clk 0:01:42]}  Qc4 {[%clk 0:01:30]} 20. Qc2 {[%clk 0:01:32]}  Re7 {[%clk 0:01:23]} 21. h3 {[%clk 0:01:31]}  Rd7 {[%clk 0:01:18]} 22. Red2 {[%clk 0:01:28]}  Rfd8 {[%clk 0:01:13]} 23. Rxd7 {[%clk 0:01:27]}  Rxd7 {[%clk 0:01:12]} 24. Nxe5 {[%clk 0:01:14]}  Rxd1+ {[%clk 0:01:10]} 25. Qxd1 {[%clk 0:01:15]}  Qxc3 {[%clk 0:01:09]} 26. Qd8+ {[%clk 0:01:13]}  Kh7 {[%clk 0:01:08]} 27. Nxf7 {[%clk 0:01:07]}  Qxe3+ {[%clk 0:01:07]} 28. Kh2 {[%clk 0:01:07]}  Qf4 {[%clk 0:00:52]} 29. Qd6 {[%clk 0:00:53]}  Ng4+ {[%clk 0:00:42]} 30. hxg4 {[%clk 0:00:51]}  Qxf7 {[%clk 0:00:42]} 31. Nf5 {[%clk 0:00:36]}  Nc4 {[%clk 0:00:39]} 32. Qd3 {[%clk 0:00:29]}  Ne5 {[%clk 0:00:38]} 33. Qg3 {[%clk 0:00:29]}  Qf6 {[%clk 0:00:35]} 34. Ne3 {[%clk 0:00:24]}  Qg5 {[%clk 0:00:32]} 35. Kh3 {[%clk 0:00:22]}  b6 {[%clk 0:00:24]} 36. Nf5 {[%clk 0:00:21]}  Ng6 {[%clk 0:00:24]} 37. Qd6 {[%clk 0:00:19]}  Qf6 {[%clk 0:00:20]} 38. Qxf6 {[%clk 0:00:16]}  gxf6 {[%clk 0:00:21]} 39. Nd6 {[%clk 0:00:14]}  a5 {[%clk 0:00:15]} 40. bxa5 {[%clk 0:00:13]}  bxa5 {[%clk 0:00:16]} 41. Kg3 {[%clk 0:00:14]}  Ne5 {[%clk 0:00:15]} 42. Kf4 {[%clk 0:00:13]}  Kg6 {[%clk 0:00:15]} 43. g3 {[%clk 0:00:12]}  a4 {[%clk 0:00:13]} 44. Nb7 {[%clk 0:00:04]}  Nd7 {[%clk 0:00:09]} 45. Na5 {[%clk 0:00:03]}  c5 {[%clk 0:00:08]} 46. Nc4 {[%clk 0:00:04]}  Kf7 {[%clk 0:00:06]} 47. Nb2 {[%clk 0:00:03]}  Nb6 {[%clk 0:00:05]} 48. Ke3 {[%clk 0:00:03]}  Ke6 {[%clk 0:00:05]} 49. Kd3 {[%clk 0:00:04]}  Ke5 {[%clk 0:00:05]} 50. Ke3 {[%clk 0:00:04]}  c4 {[%clk 0:00:05]} 51. Nd1 {[%clk 0:00:03]}  Ke6 {[%clk 0:00:05]} 52. Nc3 {[%clk 0:00:04]}  Ke5 {[%clk 0:00:05]} 53. Nd1 {[%clk 0:00:03]}  Nd7 {[%clk 0:00:04]} 54. Nc3 {[%clk 0:00:03]}  Nc5 {[%clk 0:00:04]} 55. Kf3 {[%clk 0:00:03]}  Kd4 {[%clk 0:00:04]} 56. Nb5+ {[%clk 0:00:03]}  Kd3 {[%clk 0:00:04]} 57. Kf4 {[%clk 0:00:04]}  c3 {[%clk 0:00:04]} 58. Nxc3 {[%clk 0:00:03]}  Kxc3 {[%clk 0:00:04]} 59. Kf5 {[%clk 0:00:04]}  Kb3 {[%clk 0:00:04]} 60. Kxf6 {[%clk 0:00:04]}  Nxe4+ {[%clk 0:00:04]} 61. Kf5 {[%clk 0:00:04]}  Nxg3+ {[%clk 0:00:04]} 62. Kg6 {[%clk 0:00:05]}  Nf1 {[%clk 0:00:03]} 63. Kxh6 {[%clk 0:00:05]}  Nh2 {[%clk 0:00:02]} 64. g5 {[%clk 0:00:05]}  Nf3 {[%clk 0:00:02]} 65. g6 {[%clk 0:00:05]}  Nh4 {[%clk 0:00:03]} 66. g7 {[%clk 0:00:04]}  Nf5+ {[%clk 0:00:03]} 67. Kg6 {[%clk 0:00:05]}  Nxg7 {[%clk 0:00:03]} 68. Kxg7 {[%clk 0:00:06]}  Kxa3 {[%clk 0:00:04]} 69. Kf6 {[%clk 0:00:06]}  Kb2 {[%clk 0:00:04]} 70. Ke5 {[%clk 0:00:07]}  a3 {[%clk 0:00:05]} 0-1


[Site "https://www.chess.com"]

[Event "Titled Tuesday Blitz April 19 Late 2022"]
[White "Andreikin, Dmitry"]
[Black "Naroditsky, Daniel"]
[WhiteFideId "4158814"]
[BlackFideId "2026961"]
[WhiteElo "2736"]
[BlackElo "2608"]
[Result "1-0"]
[Round "10"]
[TimeControl "180+1"]
[Date "2022.04.19"]
[WhiteClock "0:01:07"]
[BlackClock "0:01:06"]

1. d4 {[%clk 0:03:00]}  Nf6 {[%clk 0:02:59]} 2. c4 {[%clk 0:03:01]}  g6 {[%clk 0:02:58]} 3. Nc3 {[%clk 0:03:01]}  Bg7 {[%clk 0:02:59]} 4. e4 {[%clk 0:03:01]}  d6 {[%clk 0:03:00]} 5. h3 {[%clk 0:03:01]}  O-O {[%clk 0:02:59]} 6. Be3 {[%clk 0:03:02]}  e5 {[%clk 0:02:51]} 7. d5 {[%clk 0:03:02]}  Na6 {[%clk 0:02:51]} 8. Bd3 {[%clk 0:03:02]}  Nc5 {[%clk 0:02:49]} 9. Bc2 {[%clk 0:03:01]}  a5 {[%clk 0:02:49]} 10. Nge2 {[%clk 0:03:01]}  Nh5 {[%clk 0:02:44]} 11. Qd2 {[%clk 0:03:01]}  f5 {[%clk 0:02:38]} 12. exf5 {[%clk 0:03:00]}  gxf5 {[%clk 0:02:38]} 13. O-O-O {[%clk 0:03:00]}  Nf6 {[%clk 0:02:26]} 14. g4 {[%clk 0:02:55]}  e4 {[%clk 0:02:16]} 15. gxf5 {[%clk 0:02:27]}  Bxf5 {[%clk 0:02:15]} 16. Rdg1 {[%clk 0:02:27]}  Kh8 {[%clk 0:01:51]} 17. Rg5 {[%clk 0:02:13]}  Bg6 {[%clk 0:01:40]} 18. Nf4 {[%clk 0:02:10]}  Bf7 {[%clk 0:01:32]} 19. Rhg1 {[%clk 0:02:08]}  Bh6 {[%clk 0:01:20]} 20. Rf5 {[%clk 0:02:03]}  Nd3+ {[%clk 0:01:15]} 21. Bxd3 {[%clk 0:01:56]}  exd3 {[%clk 0:01:15]} 22. Bd4 {[%clk 0:01:35]}  Be8 {[%clk 0:01:06]} 23. Ne4 {[%clk 0:01:07]} 1-0


[Site "https://www.chess.com"]

[Event "Titled Tuesday Blitz April 19 Late 2022"]
[White "Avramidou, Anastasia"]
[Black "Djokic, Mihailo"]
[WhiteFideId "4239873"]
[BlackFideId "976440"]
[WhiteElo "2183"]
[BlackElo "2202"]
[Result "1-0"]
[Round "10"]
[TimeControl "180+1"]
[Date "2022.04.19"]
[WhiteClock "0:00:05"]
[BlackClock "0:00:08"]

1. d4 {[%clk 0:03:00]}  Nf6 {[%clk 0:03:00]} 2. c4 {[%clk 0:03:00]}  g6 {[%clk 0:03:00]} 3. Nc3 {[%clk 0:03:00]}  Bg7 {[%clk 0:03:01]} 4. e4 {[%clk 0:03:01]}  d6 {[%clk 0:03:02]} 5. Be3 {[%clk 0:03:00]}  O-O {[%clk 0:03:02]} 6. h3 {[%clk 0:02:56]}  Nc6 {[%clk 0:03:03]} 7. d5 {[%clk 0:02:55]}  Ne5 {[%clk 0:03:01]} 8. f4 {[%clk 0:02:54]}  Ned7 {[%clk 0:03:01]} 9. Nf3 {[%clk 0:02:54]}  Nc5 {[%clk 0:03:01]} 10. Bd3 {[%clk 0:02:45]}  a5 {[%clk 0:03:00]} 11. O-O {[%clk 0:02:44]}  c6 {[%clk 0:02:58]} 12. Bc2 {[%clk 0:02:40]}  cxd5 {[%clk 0:02:48]} 13. cxd5 {[%clk 0:02:40]}  Nfd7 {[%clk 0:02:43]} 14. Qd2 {[%clk 0:02:32]}  b6 {[%clk 0:02:43]} 15. Kh1 {[%clk 0:02:28]}  Ba6 {[%clk 0:02:41]} 16. Rf2 {[%clk 0:02:27]}  Rc8 {[%clk 0:02:41]} 17. Re1 {[%clk 0:02:27]}  Nf6 {[%clk 0:02:41]} 18. e5 {[%clk 0:02:23]}  Nfd7 {[%clk 0:02:38]} 19. Bd4 {[%clk 0:02:21]}  b5 {[%clk 0:02:37]} 20. Ne4 {[%clk 0:02:05]}  Nxe4 {[%clk 0:02:33]} 21. Bxe4 {[%clk 0:02:05]}  b4 {[%clk 0:02:28]} 22. Bb1 {[%clk 0:02:00]}  Bb7 {[%clk 0:02:06]} 23. e6 {[%clk 0:01:32]}  Nf6 {[%clk 0:02:01]} 24. exf7+ {[%clk 0:01:30]}  Rxf7 {[%clk 0:02:02]} 25. Ng5 {[%clk 0:01:30]}  Bxd5 {[%clk 0:01:50]} 26. Nxf7 {[%clk 0:01:30]}  Bxf7 {[%clk 0:01:50]} 27. Rfe2 {[%clk 0:01:24]}  e5 {[%clk 0:01:35]} 28. fxe5 {[%clk 0:01:22]}  Nh5 {[%clk 0:01:35]} 29. e6 {[%clk 0:00:56]}  Be8 {[%clk 0:01:28]} 30. Bxg7 {[%clk 0:00:50]}  Ng3+ {[%clk 0:01:22]} 31. Kh2 {[%clk 0:00:50]}  Nxe2 {[%clk 0:01:22]} 32. Bh6 {[%clk 0:00:41]}  Bb5 {[%clk 0:01:08]} 33. e7 {[%clk 0:00:24]}  Qxe7 {[%clk 0:00:35]} 34. Qd5+ {[%clk 0:00:24]}  Qf7 {[%clk 0:00:33]} 35. Qxb5 {[%clk 0:00:23]}  Nd4 {[%clk 0:00:32]} 36. Qd3 {[%clk 0:00:11]}  Nf5 {[%clk 0:00:31]} 37. Bf4 {[%clk 0:00:11]}  Rc4 {[%clk 0:00:23]} 38. Rf1 {[%clk 0:00:09]}  Rd4 {[%clk 0:00:21]} 39. Qe2 {[%clk 0:00:08]}  Kg7 {[%clk 0:00:17]} 40. b3 {[%clk 0:00:07]}  Qd5 {[%clk 0:00:15]} 41. Bc1 {[%clk 0:00:07]}  Kg8 {[%clk 0:00:10]} 42. Bxf5 {[%clk 0:00:07]}  gxf5 {[%clk 0:00:10]} 43. Bb2 {[%clk 0:00:05]}  Rd2 {[%clk 0:00:08]} 44. Qe8# {[%clk 0:00:05]} 1-0


[Site "https://www.chess.com"]

[Event "Titled Tuesday Blitz April 19 Late 2022"]
[White "Barria Zuniga, Daniel"]
[Black "Zhou, Qiyu"]
[WhiteFideId "3400816"]
[BlackFideId "505161"]
[WhiteElo "2414"]
[BlackElo "1925"]
[Result "1-0"]
[Round "10"]
[TimeControl "180+1"]
[Date "2022.04.19"]
[WhiteClock "0:02:04"]
[BlackClock "0:02:14"]

1. c4 {[%clk 0:02:57]}  e5 {[%clk 0:02:59]} 2. g3 {[%clk 0:02:57]}  Nc6 {[%clk 0:02:59]} 3. Bg2 {[%clk 0:02:57]}  Bc5 {[%clk 0:02:58]} 4. Nc3 {[%clk 0:02:57]}  a5 {[%clk 0:02:56]} 5. e3 {[%clk 0:02:50]}  d6 {[%clk 0:02:56]} 6. Nge2 {[%clk 0:02:50]}  Ba7 {[%clk 0:02:56]} 7. Nb5 {[%clk 0:02:50]}  Nge7 {[%clk 0:02:52]} 8. O-O {[%clk 0:02:48]}  O-O {[%clk 0:02:52]} 9. a3 {[%clk 0:02:48]}  Be6 {[%clk 0:02:51]} 10. b3 {[%clk 0:02:39]}  f5 {[%clk 0:02:47]} 11. d4 {[%clk 0:02:34]}  Bf7 {[%clk 0:02:36]} 12. Nxa7 {[%clk 0:02:23]}  Rxa7 {[%clk 0:02:34]} 13. Nc3 {[%clk 0:02:24]}  Ra8 {[%clk 0:02:20]} 14. f4 {[%clk 0:02:18]}  e4 {[%clk 0:02:20]} 15. d5 {[%clk 0:02:08]}  Nb8 {[%clk 0:02:17]} 16. Nb5 {[%clk 0:02:05]}  Nd7 {[%clk 0:02:15]} 17. Bb2 {[%clk 0:02:05]}  Nc5 {[%clk 0:02:14]} 18. Qd4 {[%clk 0:02:04]} 1-0


[Site "https://www.chess.com"]

[Event "Titled Tuesday Blitz April 19 Late 2022"]
[White "Blackman, Justin"]
[Black "Carrasco Miranda, Andres"]
[WhiteFideId "11100516"]
[BlackFideId "3405990"]
[WhiteElo "2112"]
[BlackElo "2177"]
[Result "0-1"]
[Round "10"]
[TimeControl "180+1"]
[Date "2022.04.19"]
[WhiteClock "0:00:17"]
[BlackClock "0:00:09"]

1. e4 {[%clk 0:02:47]}  c5 {[%clk 0:02:51]} 2. Nf3 {[%clk 0:02:45]}  d6 {[%clk 0:02:45]} 3. b3 {[%clk 0:02:44]}  Nf6 {[%clk 0:02:40]} 4. Nc3 {[%clk 0:02:44]}  g6 {[%clk 0:02:39]} 5. Bb2 {[%clk 0:02:43]}  Bg7 {[%clk 0:02:39]} 6. Bb5+ {[%clk 0:02:40]}  Bd7 {[%clk 0:02:39]} 7. Bd3 {[%clk 0:02:39]}  Nc6 {[%clk 0:02:38]} 8. O-O {[%clk 0:02:38]}  O-O {[%clk 0:02:38]} 9. Re1 {[%clk 0:02:38]}  e5 {[%clk 0:02:37]} 10. Bc4 {[%clk 0:02:31]}  Nd4 {[%clk 0:02:37]} 11. h3 {[%clk 0:02:29]}  Rb8 {[%clk 0:02:30]} 12. a4 {[%clk 0:02:29]}  a6 {[%clk 0:02:29]} 13. Nd5 {[%clk 0:02:23]}  b5 {[%clk 0:02:26]} 14. Nxf6+ {[%clk 0:02:22]}  Bxf6 {[%clk 0:02:23]} 15. axb5 {[%clk 0:02:22]}  axb5 {[%clk 0:02:23]} 16. Bd5 {[%clk 0:02:22]}  Be6 {[%clk 0:02:23]} 17. Bxd4 {[%clk 0:02:17]}  cxd4 {[%clk 0:02:24]} 18. Bxe6 {[%clk 0:02:05]}  fxe6 {[%clk 0:02:23]} 19. Qe2 {[%clk 0:02:02]}  Rb7 {[%clk 0:02:21]} 20. Ra2 {[%clk 0:02:02]}  Qc7 {[%clk 0:02:18]} 21. Rea1 {[%clk 0:02:00]}  Bd8 {[%clk 0:02:11]} 22. Ne1 {[%clk 0:01:57]}  Qf7 {[%clk 0:02:07]} 23. Nd3 {[%clk 0:01:57]}  Bb6 {[%clk 0:01:58]} 24. b4 {[%clk 0:01:55]}  Qe8 {[%clk 0:01:46]} 25. Qg4 {[%clk 0:01:50]}  Kg7 {[%clk 0:01:42]} 26. Kh2 {[%clk 0:01:47]}  Rbf7 {[%clk 0:01:42]} 27. Ra6 {[%clk 0:01:42]}  Bc7 {[%clk 0:01:30]} 28. Ra7 {[%clk 0:01:40]}  d5 {[%clk 0:01:25]} 29. Rb7 {[%clk 0:01:29]}  Qc6 {[%clk 0:01:20]} 30. Raa7 {[%clk 0:01:23]}  dxe4 {[%clk 0:01:16]} 31. Nc5 {[%clk 0:01:23]}  e3 {[%clk 0:00:46]} 32. dxe3 {[%clk 0:01:10]}  e4+ {[%clk 0:00:43]} 33. Rxc7 {[%clk 0:01:00]}  Rxc7 {[%clk 0:00:38]} 34. Rxc7+ {[%clk 0:00:59]}  Qxc7+ {[%clk 0:00:37]} 35. Kg1 {[%clk 0:00:56]}  Rf6 {[%clk 0:00:27]} 36. Qxe4 {[%clk 0:00:48]}  dxe3 {[%clk 0:00:24]} 37. Qxe3 {[%clk 0:00:46]}  Qd6 {[%clk 0:00:22]} 38. c3 {[%clk 0:00:35]}  Qd5 {[%clk 0:00:22]} 39. f4 {[%clk 0:00:26]}  h5 {[%clk 0:00:21]} 40. Kh2 {[%clk 0:00:25]}  Kf7 {[%clk 0:00:18]} 41. Nd3 {[%clk 0:00:23]}  Rf5 {[%clk 0:00:16]} 42. Ne5+ {[%clk 0:00:23]}  Rxe5 {[%clk 0:00:14]} 43. fxe5 {[%clk 0:00:22]}  Qc4 {[%clk 0:00:13]} 44. Kg3 {[%clk 0:00:20]}  Kg7 {[%clk 0:00:12]} 45. Qd4 {[%clk 0:00:18]}  Qf1 {[%clk 0:00:10]} 46. Qd7+ {[%clk 0:00:17]}  Kh6 {[%clk 0:00:10]} 47. Qxe6 {[%clk 0:00:17]}  Qd3+ {[%clk 0:00:10]} 48. Kh2 {[%clk 0:00:17]}  Qxc3 {[%clk 0:00:10]} 49. Qf6 {[%clk 0:00:17]}  Qxb4 {[%clk 0:00:10]} 50. Qf4+ {[%clk 0:00:17]}  Qxf4+ {[%clk 0:00:09]} 0-1


[Site "https://www.chess.com"]

[Event "Titled Tuesday Blitz April 19 Late 2022"]
[White "Bryakin, Mikhail"]
[Black "Jaferian, Koosha"]
[WhiteFideId "4165314"]
[BlackFideId "12507440"]
[WhiteElo "2417"]
[BlackElo "2030"]
[Result "1-0"]
[Round "10"]
[TimeControl "180+1"]
[Date "2022.04.19"]
[WhiteClock "0:02:05"]
[BlackClock "0:00:12"]

1. e4 {[%clk 0:03:00]}  c6 {[%clk 0:02:59]} 2. d4 {[%clk 0:02:51]}  d5 {[%clk 0:03:00]} 3. f3 {[%clk 0:02:52]}  dxe4 {[%clk 0:02:59]} 4. fxe4 {[%clk 0:02:53]}  e5 {[%clk 0:03:00]} 5. Nf3 {[%clk 0:02:52]}  Bg4 {[%clk 0:02:59]} 6. Be3 {[%clk 0:02:43]}  Nd7 {[%clk 0:02:47]} 7. h3 {[%clk 0:02:42]}  Bxf3 {[%clk 0:02:46]} 8. gxf3 {[%clk 0:02:43]}  Ngf6 {[%clk 0:02:47]} 9. c3 {[%clk 0:02:42]}  Qb6 {[%clk 0:02:38]} 10. Qb3 {[%clk 0:02:41]}  Qc7 {[%clk 0:02:16]} 11. Nd2 {[%clk 0:02:39]}  b5 {[%clk 0:02:00]} 12. a4 {[%clk 0:02:36]}  bxa4 {[%clk 0:01:46]} 13. Rxa4 {[%clk 0:02:35]}  Rb8 {[%clk 0:01:45]} 14. Qa2 {[%clk 0:02:35]}  Qb6 {[%clk 0:01:36]} 15. Bc4 {[%clk 0:02:32]}  Qxb2 {[%clk 0:01:29]} 16. Bxf7+ {[%clk 0:02:30]}  Kd8 {[%clk 0:01:29]} 17. Qxb2 {[%clk 0:02:27]}  Rxb2 {[%clk 0:01:30]} 18. Rxa7 {[%clk 0:02:26]}  exd4 {[%clk 0:01:27]} 19. cxd4 {[%clk 0:02:25]}  Bb4 {[%clk 0:01:20]} 20. Ra8+ {[%clk 0:02:24]}  Ke7 {[%clk 0:01:20]} 21. Rxh8 {[%clk 0:02:20]}  Rb1+ {[%clk 0:01:13]} 22. Ke2 {[%clk 0:02:20]}  Rxh1 {[%clk 0:01:14]} 23. Bc4 {[%clk 0:02:17]}  Rxh3 {[%clk 0:01:07]} 24. Ra8 {[%clk 0:02:16]}  Rh2+ {[%clk 0:01:01]} 25. Kd3 {[%clk 0:02:16]}  h5 {[%clk 0:01:00]} 26. Bf4 {[%clk 0:02:13]}  Rh3 {[%clk 0:00:55]} 27. Ke2 {[%clk 0:02:13]}  Bxd2 {[%clk 0:00:37]} 28. Bxd2 {[%clk 0:02:12]}  Rh2+ {[%clk 0:00:38]} 29. Kd3 {[%clk 0:02:12]}  c5 {[%clk 0:00:30]} 30. e5 {[%clk 0:02:11]}  Ne8 {[%clk 0:00:24]} 31. Bg5+ {[%clk 0:02:10]}  Kf8 {[%clk 0:00:21]} 32. Bb5 {[%clk 0:02:09]}  cxd4 {[%clk 0:00:16]} 33. Bxd7 {[%clk 0:02:09]}  Rf2 {[%clk 0:00:15]} 34. Rxe8+ {[%clk 0:02:09]}  Kf7 {[%clk 0:00:16]} 35. e6+ {[%clk 0:02:08]}  Kg6 {[%clk 0:00:17]} 36. f4 {[%clk 0:02:08]}  h4 {[%clk 0:00:17]} 37. Rh8 {[%clk 0:02:08]}  Rf3+ {[%clk 0:00:17]} 38. Ke4 {[%clk 0:02:08]}  Re3+ {[%clk 0:00:13]} 39. Kxd4 {[%clk 0:02:09]}  Re1 {[%clk 0:00:11]} 40. e7 {[%clk 0:02:09]}  h3 {[%clk 0:00:10]} 41. e8=Q+ {[%clk 0:02:09]}  Rxe8 {[%clk 0:00:10]} 42. Bxe8+ {[%clk 0:02:10]}  Kf5 {[%clk 0:00:10]} 43. Bd7+ {[%clk 0:02:11]}  Kg6 {[%clk 0:00:11]} 44. Rxh3 {[%clk 0:02:08]}  Kf7 {[%clk 0:00:11]} 45. Bf5 {[%clk 0:02:08]}  Kg8 {[%clk 0:00:11]} 46. Ke5 {[%clk 0:02:06]}  g6 {[%clk 0:00:12]} 47. Kf6 {[%clk 0:02:04]}  gxf5 {[%clk 0:00:12]} 48. Rh1 {[%clk 0:02:04]}  Kf8 {[%clk 0:00:12]} 49. Rh8# {[%clk 0:02:05]} 1-0


[Site "https://www.chess.com"]

[Event "Titled Tuesday Blitz April 19 Late 2022"]
[White "D`Arruda, Ricardo D."]
[Black "Tristan, Leonardo"]
[WhiteFideId "100692"]
[BlackFideId "113816"]
[WhiteElo "2451"]
[BlackElo "2404"]
[Result "0-1"]
[Round "10"]
[TimeControl "180+1"]
[Date "2022.04.19"]
[WhiteClock "0:00:15"]
[BlackClock "0:00:06"]

1. Nf3 {[%clk 0:03:00]}  d5 {[%clk 0:03:00]} 2. d3 {[%clk 0:03:00]}  Nf6 {[%clk 0:03:00]} 3. g3 {[%clk 0:03:01]}  Bf5 {[%clk 0:03:00]} 4. Bg2 {[%clk 0:03:02]}  e6 {[%clk 0:03:01]} 5. O-O {[%clk 0:03:01]}  Be7 {[%clk 0:03:01]} 6. Nh4 {[%clk 0:03:01]}  Bg4 {[%clk 0:03:01]} 7. h3 {[%clk 0:03:00]}  Bh5 {[%clk 0:03:01]} 8. g4 {[%clk 0:03:01]}  Nfd7 {[%clk 0:03:02]} 9. Nf3 {[%clk 0:03:00]}  Bg6 {[%clk 0:03:02]} 10. Nc3 {[%clk 0:02:59]}  O-O {[%clk 0:03:01]} 11. e4 {[%clk 0:02:59]}  c6 {[%clk 0:03:01]} 12. Be3 {[%clk 0:02:54]}  e5 {[%clk 0:02:55]} 13. exd5 {[%clk 0:02:51]}  f5 {[%clk 0:02:51]} 14. gxf5 {[%clk 0:02:46]}  Bxf5 {[%clk 0:02:51]} 15. Nd2 {[%clk 0:02:36]}  Nf6 {[%clk 0:02:43]} 16. dxc6 {[%clk 0:02:33]}  Nxc6 {[%clk 0:02:44]} 17. Nde4 {[%clk 0:02:33]}  Qd7 {[%clk 0:02:41]} 18. Kh2 {[%clk 0:02:32]}  Rad8 {[%clk 0:02:40]} 19. Nxf6+ {[%clk 0:02:28]}  Bxf6 {[%clk 0:02:40]} 20. Ne4 {[%clk 0:02:28]}  Be7 {[%clk 0:02:36]} 21. Qe2 {[%clk 0:02:23]}  Qc7 {[%clk 0:02:33]} 22. c3 {[%clk 0:02:21]}  Nd4 {[%clk 0:02:33]} 23. Qd1 {[%clk 0:02:13]}  Ne6 {[%clk 0:02:33]} 24. Qb3 {[%clk 0:02:03]}  Kh8 {[%clk 0:02:32]} 25. Rad1 {[%clk 0:02:01]}  b6 {[%clk 0:02:30]} 26. Ng3 {[%clk 0:01:52]}  Nf4 {[%clk 0:02:16]} 27. Nxf5 {[%clk 0:01:50]}  Rxf5 {[%clk 0:02:13]} 28. Bxf4 {[%clk 0:01:37]}  exf4 {[%clk 0:02:13]} 29. Bf3 {[%clk 0:01:28]}  Bh4 {[%clk 0:01:39]} 30. d4 {[%clk 0:01:27]}  Qd6 {[%clk 0:01:24]} 31. Rde1 {[%clk 0:01:25]}  Qg6 {[%clk 0:01:07]} 32. Rg1 {[%clk 0:01:14]}  Qf6 {[%clk 0:00:55]} 33. Re6 {[%clk 0:01:10]}  Qf7 {[%clk 0:00:55]} 34. Re2 {[%clk 0:00:50]}  Qf8 {[%clk 0:00:47]} 35. Rge1 {[%clk 0:00:48]}  Qd6 {[%clk 0:00:24]} 36. Qc2 {[%clk 0:00:47]}  Rdf8 {[%clk 0:00:21]} 37. Re6 {[%clk 0:00:46]}  Qd8 {[%clk 0:00:18]} 38. Qe4 {[%clk 0:00:44]}  Qg5 {[%clk 0:00:18]} 39. Rg1 {[%clk 0:00:42]}  Qd8 {[%clk 0:00:13]} 40. Qe2 {[%clk 0:00:23]}  g6 {[%clk 0:00:11]} 41. Bg4 {[%clk 0:00:20]}  f3 {[%clk 0:00:10]} 42. Qe4 {[%clk 0:00:19]}  Bxf2 {[%clk 0:00:08]} 43. Bxf5 {[%clk 0:00:18]}  Bxg1+ {[%clk 0:00:08]} 44. Kxg1 {[%clk 0:00:18]}  Qg5+ {[%clk 0:00:08]} 45. Bg4 {[%clk 0:00:15]}  f2+ {[%clk 0:00:08]} 46. Kg2 {[%clk 0:00:14]}  f1=Q+ {[%clk 0:00:08]} 47. Kg3 {[%clk 0:00:15]}  Qf2# {[%clk 0:00:06]} 0-1


[Site "https://www.chess.com"]